fUSD/lending_fUSD_20241109
["ID","MTS","AMOUNT","RATE_DAILY","PERIOD"]
[341729719,1731159050347,-500.0,0.00028493,2]
[341729720,1731159050356,-500.0,0.00028493,2]
[341729721,1731159050365,-500.0,0.00028493,2]
[341729722,1731159050374,-171.643952,0.00028493,7]
[341729723,1731159050383,-500.0,0.00028493,2]
[341729724,1731159050392,-500.0,0.00028493,2]
[341729725,1731159050402,-500.0,0.00028493,2]
[341729726,1731159050411,-500.0,0.00028493,2]
[341729727,1731159050420,-500.0,0.00028493,2]
[341729728,1731159050429,-500.0,0.00028493,2]
[341729729,1731159050437,-500.0,0.00028493,2]
[341729730,1731159050446,-500.0,0.00028493,2]
[341729731,1731159050456,-500.0,0.00028493,2]
[341729732,1731159050466,-500.0,0.00028493,2]
[341729733,1731159050475,-500.0,0.00028493,2]
[341729734,1731159050485,-500.0,0.00028493,2]
[341729735,1731159050494,-500.0,0.00028493,2]
[341729736,1731159050504,-500.0,0.00028493,2]
[341729737,1731159050513,-500.0,0.00028493,2]
[341729738,1731159050522,-500.0,0.00028493,2]
[341729739,1731159050532,-500.0,0.00028493,2]
[341729740,1731159050541,-500.0,0.00028493,2]
[341729741,1731159050550,-500.0,0.00028493,2]
[341729742,1731159050559,-500.0,0.00028493,2]
[341729743,1731159050568,-500.0,0.00028493,2]
[341729744,1731159050578,-500.0,0.00028493,2]
[341729745,1731159050588,-500.0,0.00028493,2]
[341729746,1731159050597,-500.0,0.00028493,2]
[341729747,1731159050607,-500.0,0.00028493,2]
[341729748,1731159050617,-500.0,0.00028493,2]
[341729749,1731159050625,-500.0,0.00028493,2]
[341729750,1731159050635,-222.516754,0.00028493,7]
[341729751,1731159050644,-222.516754,0.00028493,7]
[341729752,1731159050653,-151.0,0.00028493,7]
[341729753,1731159050663,-150.0,0.00028493,2]
[341729754,1731159050672,-239.47289828,0.00028493,2]
[341729755,1731159050681,-150.0,0.00028493,2]
[341729756,1731159050690,-213.253201,0.00028493,7]
[341729757,1731159050699,-500.0,0.00028493,2]
[341729758,1731159050711,-624.55014392,0.00028493,2]
[341729759,1731159050720,-150.0,0.00028493,2]
[341729760,1731159050729,-500.0,0.00028493,2]
[341729761,1731159050739,-500.0,0.00028493,2]
[341729762,1731159050748,-500.0,0.00028493,2]
[341729763,1731159050757,-500.0,0.00028493,2]
[341729764,1731159050767,-500.0,0.00028493,2]
[341729765,1731159050776,-841.42802442,0.00028493,2]
[341729766,1731159050786,-527.0,0.00028493,2]
[341729767,1731159050795,-213.253201,0.00028493,7]
[341729768,1731159050804,-527.0,0.00028493,2]
[341729769,1731159050814,-527.0,0.00028493,2]
[341729770,1731159050823,-527.0,0.00028493,2]
[341729771,1731159050832,-527.0,0.00028493,2]
[341729772,1731159050841,-527.0,0.00028493,2]
[341729773,1731159050855,-527.0,0.00028493,2]
[341729774,1731159050864,-527.0,0.00028493,2]
[341729775,1731159050873,-527.0,0.00028493,2]
[341729776,1731159050883,-527.0,0.00028493,2]
[341729777,1731159050891,-527.0,0.00028493,2]
[341729778,1731159050901,-527.0,0.00028493,2]
[341729779,1731159050910,-527.0,0.00028493,2]
[341729780,1731159050919,-527.0,0.00028493,2]
[341729781,1731159050928,-527.0,0.00028493,2]
[341729782,1731159050937,-527.0,0.00028493,2]
[341729783,1731159050947,-527.0,0.00028493,2]
[341729784,1731159050958,-527.0,0.00028493,2]
[341729785,1731159050967,-527.0,0.00028493,2]
[341729786,1731159050977,-533.89894168,0.00028493,2]
[341729787,1731159050986,-151.0,0.00028493,7]
[341729788,1731159050995,-1222.501098,0.00028493,7]
[341729789,1731159051005,-1222.501098,0.00028493,7]
[341729790,1731159051014,-282.672778,0.00028493,7]
[341729791,1731159051023,-662.004804,0.00028493,7]
[341729792,1731159051032,-662.004804,0.00028493,7]
[341729793,1731159051041,-803.0,0.000285,2]
[341729794,1731159051050,-967.5,0.000285,2]
[341729795,1731159051059,-736.7,0.000285,2]
[341729796,1731159051069,-152.0,0.00028509,4]
[341729797,1731159051078,-151.0,0.00028527,7]
[341729798,1731159051087,-151.0,0.00028527,7]
[341729799,1731159051096,-516.730274,0.00028527,7]
[341729800,1731159051105,-516.730274,0.00028527,7]
[341729801,1731159051114,-1313.845409,0.00028527,7]
[341729802,1731159051123,-1313.845409,0.00028527,7]
[341729803,1731159051133,-151.0,0.00028527,7]
[341729804,1731159051142,-282.285023,0.00028527,7]
[341729805,1731159051151,-282.285023,0.00028527,7]
[341729806,1731159051160,-151.0,0.00028527,7]
[341729807,1731159051169,-151.0,0.00028527,7]
[341729808,1731159051178,-151.0,0.00028527,7]
[341729809,1731159051187,-151.0,0.00028527,7]
[341729810,1731159051196,-151.0,0.00028527,7]
[341729811,1731159051206,-1665.136218,0.00028527,7]
[341729812,1731159051215,-1922.0,0.00028528,2]
[341729813,1731159051225,-812.0,0.00028528,2]
[341729814,1731159051234,-1258.0,0.00028528,2]
[341729815,1731159051243,-900.72526046,0.00028528,2]
[341729816,1731159156927,-500.0,0.00028889,120]
[341729817,1731159156949,-200.0,0.00028889,120]
[341729818,1731159169209,199.63,0.00020039,2]
[341729819,1731159170257,341.36375,0.00021415,2]
[341729820,1731159173278,177.01425,0.00021415,2]
[341729821,1731159182112,300.0,0.00019725,2]
[341729822,1731159182864,420.0,0.00021484,2]
[341729823,1731159199570,300.0,0.00028747,120]
[341729824,1731159241931,300.0,0.00019725,2]
[341729825,1731159242702,420.0,0.00021484,2]
[341729826,1731159244696,153.72507268,0.0002154,2]
[341729827,1731159244718,34.51742732,0.0002154,2]
[341729829,1731159287193,-1635.0,0.000229,2]
[341729830,1731159308771,-2381.6,0.00023131,2]
[341729831,1731159317584,250.0274167,0.0002154,2]
[341729832,1731159359658,557.39,0.00025278,120]
[341729833,1731159437378,-557.39,0.00028438,120]
[341729834,1731159437402,-200.0,0.00028747,120]
[341729835,1731159437423,-200.0,0.00028747,120]
[341729836,1731159461003,156.0,0.00029,120]
[341729837,1731159505356,209.0,0.0002164,2]
[341729838,1731159597560,-153.61,0.00027823,30]
[341729839,1731159597586,-10785.51,0.000288,30]
[341729840,1731159637146,225.63,0.00015342,2]
[341729841,1731159637262,225.63,0.00021745,2]
[341729842,1731159639812,682.5465,0.00021858,2]
[341729844,1731159662960,300.0,0.00019725,2]
[341729845,1731159663533,420.0,0.00021484,2]
[341729853,1731159842733,300.0,0.00019725,2]
[341729854,1731159843432,420.0,0.00021484,2]
[341729855,1731159850119,450.0,0.00021,2]
[341729857,1731159954796,150.0,0.00018123,2]
[341729858,1731159956696,186.0345,0.00021973,2]
[341729860,1731159989878,8550.0,0.0002,2]
[341729861,1731160050191,-209.0,0.0002211,2]
[341729862,1731160050214,-466.29648674,0.00022144,2]
[341729863,1731160077109,25.63026136,0.00019218,2]
[341729864,1731160077132,152.93973864,0.00019218,2]
[341729865,1731160082088,150.0,0.00019725,2]
[341729866,1731160082112,150.0,0.00019725,2]
[341729869,1731160176454,14840.0,0.0002,2]
[341729874,1731160201416,150.0,0.00019725,2]
[341729875,1731160201440,150.0,0.00019725,2]
[341729876,1731160202800,285.16074491,0.0002,2]
[341729881,1731160231940,-2734.38687102,0.00020443,2]
[341729882,1731160231949,-196.845,0.00020543,2]
[341729883,1731160231959,-164.5155,0.00020543,2]
[341729884,1731160231969,-2734.38687102,0.00021019,2]
[341729885,1731160231979,-420.0,0.00021484,2]
[341729886,1731160231989,-811.10865431,0.00021484,2]
[341729887,1731160231999,-2734.38687102,0.00021595,2]
[341729888,1731160232009,-350.947,0.00021695,2]
[341729889,1731160232019,-175.92675,0.00021695,2]
[341729890,1731160232029,-573.42925,0.00021695,2]
[341729891,1731160232039,-701.894,0.00021858,2]
[341729892,1731160232048,-1940.75351326,0.00022144,2]
[341729893,1731160232058,-209.0,0.0002258,2]
[341729894,1731160232067,-500.0,0.00023,2]
[341729895,1731160232076,-160.0,0.00023,2]
[341729896,1731160232086,-200.0,0.00023002,2]
[341729897,1731160232095,-7594.48,0.0002302,2]
[341729898,1731160232103,-209.0,0.0002305,2]
[341729899,1731160232115,-785.76,0.0002305,2]
[341729900,1731160232124,-1441.2,0.0002305,5]
[341729901,1731160232134,-1907.34,0.00023079,2]
[341729902,1731160232143,-11444.05119827,0.00023115,2]
[341729903,1731160232190,-581.51629935,0.00023115,2]
[341729904,1731160232214,-3614.69999946,0.00023115,2]
[341729905,1731160232470,-75.03294301,0.00023115,2]
[341729906,1731160232509,-8184.69955991,0.00023115,2]
[341729907,1731160232519,-2839.81,0.00023219,2]
[341729908,1731160232528,-250.0,0.00023322,2]
[341729909,1731160232538,-587.0,0.00023401,2]
[341729910,1731160232547,-300.0,0.00023504,2]
[341729911,1731160232557,-209.0,0.0002353,2]
[341729912,1731160232567,-324.5647198,0.00023863,2]
[341729913,1731160232576,-150.0,0.00023863,2]
[341729914,1731160232586,-3000.0,0.000239,2]
[341729915,1731160232596,-10122.13,0.00023917,2]
[341729916,1731160232607,-4290.15,0.00023968,2]
[341729917,1731160232617,-209.0,0.00024,2]
[341729918,1731160232626,-5551.74385648,0.00024,3]
[341729919,1731160232635,-465.56,0.00024059,2]
[341729920,1731160232645,-10387.85,0.00024229,2]
[341729921,1731160232654,-500.0,0.00024314,2]
[341729922,1731160232664,-480.03,0.00024314,2]
[341729923,1731160232674,-480.03,0.00024327,2]
[341729924,1731160232683,-480.03,0.0002434,2]
[341729925,1731160232692,-763.22,0.00024344,2]
[341729926,1731160232702,-480.03,0.00024353,2]
[341729927,1731160232712,-4290.15,0.00024353,2]
[341729928,1731160232722,-480.03,0.00024366,2]
[341729929,1731160232731,-480.03,0.00024378,2]
[341729930,1731160232741,-1000.0,0.00024388,2]
[341729931,1731160232750,-480.03,0.00024391,2]
[341729932,1731160232759,-480.03,0.00024404,2]
[341729933,1731160232769,-2407.05,0.00024408,2]
[341729934,1731160232779,-480.03,0.00024417,2]
[341729935,1731160232788,-480.03,0.00024429,2]
[341729936,1731160232798,-2705.37,0.00024437,2]
[341729937,1731160232808,-480.03,0.00024442,2]
[341729938,1731160232817,-480.03,0.00024455,2]
[341729939,1731160232827,-480.03,0.00024468,2]
[341729940,1731160232837,-209.0,0.0002447,2]
[341729941,1731160232846,-480.03,0.00024481,2]
[341729942,1731160232857,-480.03,0.00024493,2]
[341729943,1731160232867,-480.03,0.00024506,2]
[341729944,1731160232877,-250.0,0.00024507,2]
[341729945,1731160232886,-480.03,0.00024519,2]
[341729946,1731160232896,-480.03,0.00024532,2]
[341729947,1731160232905,-480.03,0.00024545,2]
[341729948,1731160232914,-480.03,0.00024557,2]
[341729949,1731160232924,-175.61,0.00024589,2]
[341729950,1731160232933,-3079.9163134,0.00024592,2]
[341729951,1731160232943,-200.0,0.00024643,2]
[341729952,1731160232952,-101455.05,0.00024658,2]
[341729953,1731160232961,-1000.0,0.00024658,2]
[341729954,1731160232970,-4105.15,0.00024692,2]
[341729955,1731160232979,-555.13,0.00024703,2]
[341729956,1731160232989,-4290.15,0.00024738,2]
[341729957,1731160232999,-166.58,0.00024762,2]
[341729958,1731160233010,-226.37,0.00024825,2]
[341729959,1731160233020,-1730.15,0.00024835,2]
[341729960,1731160233030,-153.92,0.00024883,30]
[341729961,1731160233039,-209.0,0.0002494,2]
[341729962,1731160233050,-550.0,0.00025,2]
[341729963,1731160233059,-176.0,0.00025,2]
[341729964,1731160233068,-4290.15,0.00025123,2]
[341729965,1731160233078,-250.0,0.0002516,2]
[341729966,1731160233087,-3079.9163134,0.00025197,2]
[341729967,1731160233097,-450.2,0.00025278,2]
[341729968,1731160233107,-209.0,0.0002542,2]
[341729969,1731160233117,-4290.15,0.00025508,2]
[341729970,1731160233126,-315.87,0.00025721,2]
[341729971,1731160233135,-3079.9163134,0.00025802,2]
[341729972,1731160233144,-209.0,0.0002589,2]
[341729973,1731160233154,-176.0,0.0002589,2]
[341729974,1731160233163,-4290.15,0.00025894,2]
[341729975,1731160233173,-166.19,0.00025953,2]
[341729976,1731160233182,-266.96,0.00026007,2]
[341729977,1731160233191,-500.0,0.00026101,2]
[341729978,1731160233201,-272.948706,0.00026101,2]
[341729979,1731160233210,-68572.0,0.00026102,2]
[341729980,1731160233220,-500.0,0.00026164,7]
[341729981,1731160233230,-503.07513458,0.00026164,7]
[341729982,1731160233239,-500.0,0.00026164,7]
[341729983,1731160233249,-4290.15,0.00026279,2]
[341729984,1731160233259,-209.0,0.0002636,2]
[341729985,1731160233268,-3079.9163134,0.00026407,2]
[341729986,1731160233279,-298.33894428,0.00026409,2]
[341729987,1731160233289,-375.10269972,0.00026412,2]
[341729988,1731160233299,-242.48,0.00026414,2]
[341729989,1731160233308,-242.48,0.00026428,2]
[341729990,1731160233318,-242.48,0.00026442,2]
[341729991,1731160233327,-242.48,0.00026456,2]
[341729992,1731160233337,-242.48,0.0002647,2]
[341729993,1731160233347,-242.48,0.00026484,2]
[341729994,1731160233358,-242.48,0.00026498,2]
[341729995,1731160233368,-5003.54697157,0.0002651,2]
[341729996,1731160233378,-1000.0,0.0002651,2]
[341729997,1731160233387,-153351.8357315,0.0002651,2]
[341729998,1731160233429,-250.0,0.00026101,2]
[341729999,1731160233440,-250.0,0.00026101,2]
[341730000,1731160233450,-500.0,0.00026101,2]
[341730001,1731160233459,-3222.25830245,0.0002651,2]
[341730002,1731160233470,-14133.19765037,0.0002651,2]
[341730003,1731160237675,-0.04006392,0.00022984,2]
[341730004,1731160237691,-149.95993608,0.00022984,2]
[341730005,1731160237701,-500.0,0.00026101,2]
[341730006,1731160237712,-500.0,0.00026101,2]
[341730007,1731160237721,-386.31384676,0.00026101,2]
[341730008,1731160237802,-113.68615324,0.00026101,2]
[341730009,1731160237813,-494.00773008,0.00026101,2]
[341730010,1731160237823,-500.0,0.00026101,2]
[341730011,1731160237832,-209.61049682,0.00026101,2]
[341730167,1731160239714,-290.38950318,0.00026101,2]
[341730170,1731160239724,-500.0,0.00026101,2]
[341730171,1731160239733,-1683.0434976,0.0002651,2]
[341730174,1731160239744,-610.38,0.0002651,2]
[341730480,1731160242785,-60.37121229,0.00026478,2]
[341730487,1731160242841,-104.81878771,0.00026478,2]
[341730489,1731160242850,-48269.55111808,0.0002651,2]
[341730491,1731160242859,-242.48,0.00026512,2]
[341730493,1731160242868,-242.48,0.00026525,2]
[341730495,1731160242878,-242.48,0.00026539,2]
[341730497,1731160242887,-242.48,0.00026553,2]
[341730499,1731160242897,-242.48,0.00026567,2]
[341730500,1731160242906,-500.0,0.00026573,2]
[341730502,1731160242916,-341.52463235,0.00026573,2]
[341730504,1731160242925,-500.0,0.00026573,2]
[341730506,1731160242934,-242.48,0.00026581,2]
[341730508,1731160242944,-242.48,0.00026595,2]
[341730510,1731160242953,-242.48,0.00026609,2]
[341730512,1731160242962,-242.48,0.00026623,2]
[341730514,1731160242972,-242.48,0.00026637,2]
[341730516,1731160242981,-242.48,0.0002665,2]
[341730519,1731160242991,-4290.15,0.00026664,2]
[341730521,1731160243000,-242.48,0.00026664,2]
[341730522,1731160243010,-2407.05,0.00026671,2]
[341730524,1731160243020,-242.48,0.00026678,2]
[341730526,1731160243029,-315.87,0.00026736,2]
[341730528,1731160243039,-209.0,0.0002683,2]
[341730530,1731160243048,-298.33894422,0.00026927,2]
[341730532,1731160243057,-150.0,0.00026997,2]
[341730534,1731160243066,-150.0,0.00026997,2]
[341730536,1731160243075,-150.0,0.00026997,2]
[341730539,1731160243085,-432.91,0.00026997,2]
[341730542,1731160243094,-600.0,0.00027,2]
[341730546,1731160243104,-3079.9163134,0.00027012,2]
[341730549,1731160243114,-465.56,0.00027066,120]
[341730552,1731160243123,-222.54,0.00027074,2]
[341730555,1731160243132,-561.7,0.00027074,2]
[341730557,1731160243141,-1704.1,0.00027074,2]
[341730559,1731160243150,-4778.44,0.00027074,2]
[341730561,1731160243159,-152.0,0.00027235,3]
[341730563,1731160243168,-260.92,0.000273,2]
[341730565,1731160243177,-209.0,0.000273,2]
[341730567,1731160243186,-266.96,0.00027377,2]
[341730569,1731160243196,-7500.0,0.00027397,2]
[341730571,1731160243204,-200.0,0.00027397,7]
[341730573,1731160243214,-312.91,0.00027397,10]
[341730575,1731160243223,-1000.0,0.00027436,2]
[341730577,1731160243232,-298.33894422,0.00027445,2]
[341730578,1731160243241,-290.1713,0.00027571,2]
[341730580,1731160243251,-3079.9163134,0.00027616,2]
[341730583,1731160243260,-1004.8315,0.0002767,2]
[341730585,1731160243269,-500.0,0.00027671,2]
[341730587,1731160243279,-500.0,0.00027671,2]
[341730589,1731160243291,-500.0,0.00027671,2]
[341730590,1731160243300,-500.0,0.00027671,2]
[341730593,1731160243309,-500.0,0.00027671,2]
[341730595,1731160243319,-500.0,0.00027671,2]
[341730597,1731160243328,-500.0,0.00027671,2]
[341730599,1731160243339,-500.0,0.00027671,2]
[341730601,1731160243347,-500.0,0.00027671,2]
[341730603,1731160243357,-359.48010602,0.00027671,2]
[341730604,1731160243368,-315.87,0.00027751,2]
[341730606,1731160243378,-209.0,0.0002778,2]
[341730608,1731160243387,-216.17430488,0.0002779,2]
[341730611,1731160243396,-35921.87032411,0.000278,3]
[341730613,1731160243406,-500.0,0.00027808,7]
[341730614,1731160243415,-500.0,0.00027808,7]
[341730617,1731160243425,-361.8,0.00027817,2]
[341730618,1731160243434,-852.89,0.00027819,2]
[341730620,1731160243443,-432.91,0.00027819,2]
[341730623,1731160243454,-432.91,0.00027819,2]
[341730625,1731160243463,-432.91,0.00027819,2]
[341730626,1731160243472,-432.91,0.00027819,2]
[341730629,1731160243482,-614.8,0.00027819,2]
[341730630,1731160243491,-432.91,0.00027819,2]
[341730632,1731160243501,-432.91,0.00027819,2]
[341730635,1731160243512,-446.53,0.00027819,2]
[341730637,1731160243521,-150.0,0.00027874,2]
[341730639,1731160243532,-771.59316855,0.00027885,2]
[341730641,1731160243542,-1000.0,0.00027942,2]
[341730643,1731160243551,-1111.85062823,0.00027957,2]
[341730645,1731160243561,-1722.98305682,0.00027957,2]
[341730647,1731160243570,-298.33894422,0.00027963,2]
[341730649,1731160243581,-629.493,0.00027979,18]
[341730651,1731160243591,-225.63,0.00028147,2]
[341730653,1731160243600,-3079.9163134,0.00028221,2]
[341730655,1731160243610,-209.0,0.0002825,2]
[341730657,1731160243619,-6197.0,0.00028274,30]
[341730677,1731160243805,-8521.7264,0.000283,2]
[341730679,1731160243816,-561.7,0.00028428,2]
[341730681,1731160243827,-7500.0,0.0002848,2]
[341730684,1731160243839,-1253.0,0.0002848,2]
[341730686,1731160243849,-452.0,0.0002848,2]
[341730688,1731160243858,-1990.0,0.0002848,2]
[341730690,1731160243868,-559.0,0.0002848,2]
[341730692,1731160243877,-1541.0,0.0002848,2]
[341730694,1731160243886,-2909.0,0.0002848,2]
[341730696,1731160243895,-1258.0,0.0002848,2]
[341730698,1731160243905,-3311.831,0.0002848,2]
[341730699,1731160243914,-13623.0,0.0002848,2]
[341730701,1731160243923,-150.0,0.0002848,2]
[341730704,1731160243932,-5926.0,0.0002848,2]
[341730705,1731160243942,-165.813,0.0002848,2]
[341730708,1731160243951,-200.0,0.0002848,2]
[341730709,1731160243961,-1090.0,0.0002848,2]
[341730711,1731160243970,-298.33894422,0.00028482,2]
[341730714,1731160243980,-78884.60155395,0.00028499,2]
[341730716,1731160243989,-43917.49979581,0.00028499,2]
[341730717,1731160243998,-3000.0,0.000285,2]
[341730719,1731160244008,-152.0,0.00028509,4]
[341730722,1731160244018,-513.80951296,0.00028527,2]
[341730724,1731160244028,-500.0,0.00028581,7]
[341730726,1731160244038,-665.32,0.00028592,2]
[341730728,1731160244047,-875.63776,0.000286,2]
[341730730,1731160244057,-365.0,0.000286,2]
[341730732,1731160244066,-152.246,0.0002862,2]
[341730734,1731160244075,-153.069,0.0002862,2]
[341730736,1731160244085,-362.09,0.00028641,2]
[341730738,1731160244094,-153.92,0.00028659,30]
[341730740,1731160244103,-209.0,0.0002872,2]
[341730741,1731160244112,-500.0,0.00028724,120]
[341730744,1731160244122,-200.0,0.00028724,120]
[341730746,1731160244131,-315.87,0.00028766,2]
[341730747,1731160244140,-1000.0,0.00028767,3]
[341730749,1731160244149,-1000.0,0.00028767,3]
[341730751,1731160244158,-1000.0,0.00028767,3]
[341730753,1731160244168,-1000.0,0.00028767,3]
[341730756,1731160244178,-1000.0,0.00028767,3]
[341730757,1731160244196,-1000.0,0.00028767,3]
[341730758,1731160244246,-1000.0,0.00028767,3]
[341730760,1731160244388,-1000.0,0.00028767,3]
[341730763,1731160244520,-1000.0,0.00028767,3]
[341730766,1731160244664,-1000.0,0.00028767,3]
[341730768,1731160244777,-1000.0,0.00028767,3]
[341730770,1731160244872,-1000.0,0.00028767,3]
[341730772,1731160244971,-1000.0,0.00028767,3]
[341730775,1731160245080,-1000.0,0.00028767,3]
[341730777,1731160245130,-1000.0,0.00028767,3]
[341730779,1731160245144,-1000.0,0.00028767,3]
[341730781,1731160245154,-1000.0,0.00028767,3]
[341730783,1731160245163,-1000.0,0.00028767,3]
[341730785,1731160245172,-1000.0,0.00028767,3]
[341730787,1731160245182,-1000.0,0.00028767,3]
[341730789,1731160245191,-1000.0,0.00028767,3]
[341730791,1731160245200,-1000.0,0.00028767,3]
[341730793,1731160245210,-1000.0,0.00028767,3]
[341730795,1731160245218,-1000.0,0.00028767,3]
[341730797,1731160245227,-1000.0,0.00028767,3]
[341730799,1731160245236,-1000.0,0.00028767,3]
[341730801,1731160245246,-1000.0,0.00028767,3]
[341730803,1731160245257,-1000.0,0.00028767,3]
[341730805,1731160245266,-1000.0,0.00028767,3]
[341730806,1731160245276,-1000.0,0.00028767,3]
[341730808,1731160245286,-208.0,0.00028767,3]
[341730809,1731160245299,-1023.0,0.00028767,3]
[341730810,1731160245308,-4091.0,0.00028768,3]
[341730811,1731160245317,-500.0,0.00028773,5]
[341730812,1731160245327,-500.0,0.00028773,2]
[341730813,1731160245337,-531.69337372,0.00028773,5]
[341730814,1731160245347,-2301.14423365,0.000288,3]
[341730815,1731160245356,-16795.76534016,0.000288,30]
[341730816,1731160245367,-398.0,0.000288,13]
[341730818,1731160245377,-196.0,0.000288,13]
[341730820,1731160245386,-500.0,0.000288,2]
[341730822,1731160245396,-3079.9163134,0.00028826,2]
[341730823,1731160245406,-178.57,0.00028827,2]
[341730824,1731160245415,-665.32,0.00028866,2]
[341730825,1731160245425,-668.95910961,0.0002887,2]
[341730826,1731160245435,-500.0,0.00028873,5]
[341730827,1731160245444,-500.0,0.00028873,5]
[341730828,1731160245453,-160.43492646,0.00028873,5]
[341730829,1731160245463,-3224.7559182,0.00028879,2]
[341730830,1731160245473,-5008.5210923,0.00028879,2]
[341730831,1731160245482,-7500.0,0.00028879,2]
[341730832,1731160245491,-3149.4508836,0.0002888,2]
[341730833,1731160245500,-5812.5796354,0.0002888,2]
[341730834,1731160245511,-2000.0,0.00028889,2]
[341730835,1731160245521,-200.0,0.00028889,2]
[341730836,1731160245531,-7500.0,0.00028899,2]
[341730837,1731160245541,-755.89437273,0.000289,2]
[341730843,1731160246242,-424.5487877,0.00028211,3]
[341730845,1731160538057,3000.0,0.00027,60]
[341730846,1731160577035,150.0,0.00020101,2]
[341730847,1731160577056,150.0,0.00020101,2]
[341730848,1731160577077,150.0,0.00020101,2]
[341730849,1731160577099,150.0,0.00020101,2]
[341730850,1731160577122,150.0,0.00020101,2]
[341730851,1731160577143,150.0,0.00020101,2]
[341730852,1731160577163,150.0,0.00020101,2]
[341730853,1731160577184,150.0,0.00020101,2]
[341730854,1731160577204,150.0,0.00020101,2]
[341730855,1731160577223,150.0,0.00020101,2]
[341730856,1731160577244,150.0,0.00020101,2]
[341730857,1731160577265,150.0,0.00020101,2]
[341730858,1731160577286,150.0,0.00020101,2]
[341730859,1731160577306,150.0,0.00020101,2]
[341730860,1731160577325,150.0,0.00020101,2]
[341730861,1731160577345,150.0,0.00020101,2]
[341730862,1731160577365,150.0,0.00020101,2]
[341730863,1731160577386,150.0,0.00020101,2]
[341730864,1731160577407,150.0,0.00020101,2]
[341730865,1731160577429,150.47,0.00020101,2]
[341730866,1731160637330,2149.62,0.00027,60]
[341730867,1731160648882,260.48,0.00015342,2]
[341730870,1731160814714,700.0,0.00027,60]
[341730871,1731161040762,-260.48,0.00021745,2]
[341730872,1731161040790,-815.08025,0.00021769,2]
[341730873,1731161040818,-230.3465,0.0002179,2]
[341730874,1731161040844,-1670.0,0.000227,2]
[341730875,1731161040869,-724.0,0.000227,2]
[341730879,1731161248423,1600.0,0.00027,60]
[341730880,1731161362287,-178.57,0.00021161,2]
[341730881,1731161362309,-542.63753726,0.00021873,2]
[341730882,1731161362331,-295.747,0.00021973,2]
[341730883,1731161362352,-190.9095,0.00021973,2]
[341730884,1731161362375,-2690.38930612,0.00021973,2]
[341730885,1731161362397,-1647.0,0.000227,2]
[341730886,1731161362418,-200.0,0.00023,2]
[341730895,1731161398919,186.11,0.00015342,2]
[341730896,1731161400947,443.62075,0.00021769,2]
[341730897,1731161421916,334.43,0.00026341,120]
[341730898,1731161423734,271.466,0.00021695,2]
[341730904,1731161431826,-156.96,0.00025084,2]
[341730905,1731161431836,-2132.31,0.00025157,2]
[341730906,1731161431846,-11101.9581615,0.0002548,2]
[341730907,1731161431856,-1904.36229455,0.0002558,7]
[341730908,1731161431875,-298.83622181,0.0002558,7]
[341730909,1731161431886,-160.29,0.00025875,2]